bitfinex-derivatives/quotes_ETHF0:USTF0_20220106
["timestamp","ask_amount","ask_price","bid_price","bid_amount"]
[1641504530627,2.00479,3421.8,3421.0,2.00479]
[1641504530828,0.397182,3421.7,3421.0,2.00479]
[1641504531327,2.00479,3421.8,3421.0,2.00479]
[1641504532227,2.00479,3421.8,3421.1,1.74663292]
[1641504532628,0.46384754,3421.7,3421.1,1.74663292]
[1641504534631,1.44170977,3421.7,3421.1,1.74663292]
[1641504535532,1.83889177,3421.7,3421.1,1.74663292]
[1641504535731,0.86102954,3421.7,3421.1,1.74663292]
[1641504536432,0.397182,3421.7,3421.1,1.74663292]
[1641504537233,2.00479,3421.8,3421.1,1.74663292]
[1641504537437,2.00479,3421.8,3421.6,2.66687531]
[1641504537638,2.464772,3421.8,3421.6,2.66687531]
[1641504537838,2.00479,3421.8,3421.6,2.66687531]
[1641504538040,2.98265223,3421.8,3421.6,2.66687531]
[1641504538438,3.44263423,3421.8,3421.6,2.66687531]
[1641504539139,2.98265223,3421.8,3421.6,2.66687531]
[1641504539540,2.00479,3421.8,3421.6,2.66687531]
[1641504539938,0.459982,3421.7,3421.6,2.66687531]
[1641504540140,2.00479,3421.8,3421.7,4.30390827]
[1641504540643,2.464772,3421.8,3421.7,4.30390827]
[1641504541243,2.00479,3421.8,3421.7,4.30390827]
[1641504541841,2.00479,3421.8,3421.7,2.32488992]
[1641504542142,2.00479,3421.8,3421.6,2.66687531]
[1641504542742,0.459982,3421.7,3421.6,2.66687531]
[1641504545145,2.83772968,3422.0,3421.6,6.66687531]
[1641504545445,2.44054768,3422.0,3421.6,26.6916]
[1641504545846,2.44054768,3422.0,3421.6,25.1916]
[1641504546246,2.44054768,3422.0,3421.7,25.235901]
[1641504546445,2.44054768,3422.0,3421.7,20.56]
[1641504546648,2.44054768,3422.0,3421.7,8.0]
[1641504546848,1.48393124,3421.9,3421.7,8.0]
[1641504547548,1.94391324,3421.9,3421.7,8.0]
[1641504547748,1.48393124,3421.9,3421.7,8.0]
[1641504548550,1.48393124,3421.8,3421.7,8.0]
[1641504549552,3.65102968,3422.4,3421.7,8.0]
[1641504549953,2.44054768,3422.2,3421.7,8.0]
[1641504552054,1.48194083,3421.8,3421.7,8.0]
[1641504552554,1.48194083,3421.8,3421.6,2.00479]
[1641504553257,0.98445853,3421.9,3421.6,2.00479]
[1641504554355,0.98445853,3421.9,3421.8,4.0]
[1641504555358,0.98445853,3422.0,3421.8,4.0]
[1641504555559,0.98445853,3422.0,3421.9,0.76978134]
[1641504556359,1.23057317,3422.2,3421.9,21.32978134]
[1641504556558,0.46375545,3422.4,3422.2,1.09164685]
[1641504556762,0.46375545,3422.4,3422.3,4.0]
[1641504557958,3.48673083,3422.6,3422.3,4.0]
[1641504557959,0.46375545,3422.5,3422.3,4.0]
[1641504558360,0.46375545,3422.5,3422.4,0.81807584]
[1641504559560,0.92373745,3422.5,3422.4,0.81807584]
[1641504560061,0.92373745,3422.5,3422.1,2.00479]
[1641504560862,0.92373745,3422.5,3422.2,1.02416427]
[1641504561363,0.397182,3422.4,3422.2,1.02416427]
[1641504561561,0.459982,3422.3,3422.2,1.02416427]
[1641504561960,0.397182,3422.4,3422.2,1.02416427]
[1641504562161,0.46375545,3422.4,3422.1,2.00479]
[1641504562361,0.46375545,3422.4,3422.3,8.0]
[1641504562561,1.69532619,3423.1,3422.8,12.56]
[1641504562760,1.69532619,3423.1,3423.0,4.0]
[1641504563161,3.09107124,3423.6,3423.0,4.0]
[1641504563361,5.26276678,3423.9,3423.0,4.0]
[1641504563362,2.00479,3423.7,3423.0,4.0]
[1641504563561,2.44054768,3423.5,3423.0,4.0]
[1641504564964,2.00479,3423.7,3423.0,4.0]
[1641504565165,1.46053204,3423.1,3423.0,4.0]
[1641504565564,2.00479,3423.7,3423.0,4.0]
[1641504565765,1.46046788,3423.3,3423.0,4.0]
[1641504565965,2.00479,3423.7,3423.0,4.0]
[1641504566267,2.401972,3423.7,3423.0,4.0]
[1641504566866,0.384472,3423.6,3423.0,4.0]
[1641504567069,0.397182,3423.5,3423.0,4.0]
[1641504567269,1.199282,3423.5,3423.0,4.0]
[1641504567768,1.199282,3423.5,3423.0,0.87642305]
[1641504568169,1.5,3423.2,3422.4,0.87655814]
[1641504568371,1.897182,3423.1,3422.4,0.87655814]
[1641504568570,1.5,3422.6,3421.7,1.95935885]
[1641504568773,1.5,3422.2,3421.7,1.95935885]
[1641504569070,0.459982,3422.1,3421.1,0.87689242]
[1641504569271,1.5,3422.0,3421.1,0.87689242]
[1641504569472,1.5,3422.0,3421.6,2.00479]
[1641504569672,0.397182,3421.9,3421.6,2.00479]
[1641504569871,0.459982,3421.8,3421.6,2.00479]
[1641504570270,0.397182,3421.7,3421.6,2.00479]
[1641504571074,0.781654,3421.7,3421.6,2.00479]
[1641504571672,1.5,3422.3,3421.6,2.00479]
[1641504571871,0.397182,3422.2,3421.6,2.00479]
[1641504572076,1.38090924,3422.2,3421.6,2.00479]
[1641504572574,1.38090924,3422.2,3421.7,1.15690689]
[1641504573176,1.76538124,3422.2,3421.7,1.15690689]
[1641504573376,0.781654,3422.2,3421.7,1.15690689]
[1641504574277,2.44468604,3422.1,3421.7,5.15690689]
[1641504574477,2.44468604,3422.1,3421.7,25.71690689]
[1641504574674,0.10710866,3422.1,3421.7,25.71690689]
[1641504574875,0.10710866,3422.1,3421.8,8.17990124]
[1641504575274,0.10710866,3422.1,3421.9,0.17990124]
[1641504575475,0.10710866,3422.6,3422.0,2.00479]
[1641504575875,0.10710866,3422.6,3422.1,0.17990124]
[1641504576473,1.22965905,3422.9,3422.2,0.93215993]
[1641504577274,1.22965905,3422.9,3422.3,0.17992809]
[1641504577475,1.22965905,3422.9,3422.8,2.00479]
[1641504577674,1.68964105,3422.9,3422.8,2.00479]
[1641504578676,1.22965905,3422.9,3422.8,2.00479]
[1641504579475,1.22965905,3422.9,3422.8,4.18939972]
[1641504580276,1.22965905,3423.4,3422.8,4.18939972]
[1641504580476,1.22965905,3423.4,3422.9,4.0]
[1641504581277,1.22965905,3423.4,3422.8,4.00958]
[1641504581477,1.22965905,3423.4,3423.2,2.00479]
[1641504581677,1.241636,3423.3,3423.2,2.8311297]
[1641504582677,0.781654,3423.3,3423.2,2.8311297]
[1641504583078,1.241636,3423.3,3423.2,2.8311297]
[1641504583680,1.7052558,3423.3,3423.2,2.8311297]
[1641504583881,0.8608018,3423.3,3423.2,2.8311297]
[1641504584482,1.3207838,3423.3,3423.2,2.8311297]
[1641504584780,1.69327885,3423.3,3423.2,4.3311297]
[1641504584981,1.69327885,3423.3,3423.2,23.07039764]
[1641504585880,1.22965905,3423.3,3423.2,27.74431764]
[1641504586081,0.98474853,3423.6,3423.2,27.74431764]
[1641504587183,0.98474853,3423.6,3423.2,29.24431764]
[1641504587582,0.98474853,3423.7,3423.2,29.24431764]
[1641504587780,0.98474853,3423.7,3423.6,4.0]
[1641504591986,0.35370758,3424.0,3423.6,24.56]
[1641504592386,0.35370758,3424.0,3423.8,26.28651854]
[1641504592588,0.35370758,3424.0,3423.9,0.73318203]
[1641504592986,0.81368958,3424.0,3423.9,0.73318203]
[1641504593987,0.35370758,3424.0,3423.9,0.73318203]
[1641504594187,0.384472,3424.2,3423.9,0.73318203]
[1641504594386,1.86171449,3424.2,3423.9,0.73318203]
[1641504594789,1.47724249,3424.2,3423.9,0.73318203]
[1641504595389,3.48203249,3424.3,3423.9,0.73318203]
[1641504596790,1.47724249,3424.2,3423.9,0.73318203]
[1641504596991,0.459982,3424.1,3423.9,0.73318203]
[1641504597191,0.857164,3424.1,3423.9,0.73318203]
[1641504599791,0.397182,3424.1,3423.9,0.73318203]
[1641504599992,0.857164,3424.1,3423.9,0.73318203]
[1641504600595,0.8713,3424.2,3423.9,0.73318203]
[1641504601194,0.857164,3424.1,3423.6,5.45901481]
[1641504601397,1.241636,3424.1,3423.6,5.45901481]
[1641504601595,1.241636,3424.1,3423.6,1.45901481]
[1641504602898,0.98275881,3424.0,3423.6,1.45901481]
[1641504603196,0.397182,3423.9,3423.7,1.30681004]
[1641504603395,0.857164,3423.9,3423.7,1.30681004]
[1641504603898,0.397182,3423.9,3423.7,1.30681004]
[1641504604997,0.397182,3423.9,3423.8,4.0]
[1641504605898,0.98275881,3424.2,3423.8,4.0]
[1641504607101,0.397182,3424.1,3423.8,4.0]
[1641504607301,0.459982,3424.0,3423.8,4.0]
[1641504607701,0.397182,3424.1,3423.8,4.0]
[1641504608402,1.37994081,3424.1,3423.8,4.0]
[1641504608605,0.98275881,3424.1,3423.9,1.5]
[1641504608801,0.98275881,3424.1,3423.9,22.06]
[1641504609203,1.22838838,3424.4,3424.2,20.56]
[1641504609603,0.98268817,3424.3,3424.2,22.82314399]
[1641504609802,0.98268817,3424.3,3424.2,26.82314399]
[1641504610101,0.10668817,3424.3,3424.2,26.82314399]
[1641504610504,2.09548364,3424.9,3424.2,28.28173318]
[1641504610705,0.19648364,3424.9,3424.8,12.0]
[1641504610903,3.09107124,3425.6,3424.8,26.84653824]
[1641504611104,3.09107124,3425.6,3425.5,24.56]
[1641504611303,1.8422092,3425.7,3425.5,25.3681]
[1641504611705,1.8422092,3425.7,3425.6,21.96273517]
[1641504612505,1.8422092,3425.7,3425.6,9.40273517]
[1641504612705,2.00479,3425.9,3425.6,9.40273517]
[1641504612905,2.00479,3425.9,3425.6,1.40273517]
[1641504612906,0.459982,3425.8,3425.6,1.40273517]
[1641504613107,1.25767868,3425.8,3425.6,1.40273517]
[1641504614508,0.40767868,3425.7,3425.6,1.40273517]
[1641504616012,0.40767868,3425.7,3425.6,5.40273517]
[1641504616413,0.40767868,3425.7,3425.6,25.96273517]
[1641504616614,0.40767868,3425.7,3425.6,8.0]
[1641504617016,0.40767868,3425.7,3425.6,20.56]
[1641504617216,0.40767868,3425.8,3425.6,24.56]
[1641504617514,0.40767868,3425.8,3425.7,1.40893808]
[1641504618715,2.00479,3425.9,3425.8,0.64316659]
[1641504618914,2.00479,3425.9,3425.8,8.64316659]
[1641504619114,2.00479,3425.9,3425.8,20.56]
[1641504619315,1.57489,3425.9,3425.8,20.56]
[1641504620116,1.41789,3425.9,3425.8,20.56]
[1641504620516,2.00479,3426.3,3425.8,20.56]
[1641504620717,2.00479,3426.3,3425.7,1.40893808]
[1641504620718,2.00479,3426.3,3426.2,12.0]
[1641504621122,2.00479,3426.3,3426.2,13.10835499]
[1641504621520,1.84493168,3426.6,3426.2,25.66835499]
[1641504621719,1.84493168,3426.6,3426.4,14.56479]
[1641504621918,1.26493168,3426.6,3426.4,14.56479]
[1641504622119,1.26493168,3426.7,3426.5,0.012927]
[1641504623220,2.45627893,3427.0,3426.5,0.012927]
[1641504623422,2.45627893,3427.0,3426.9,24.56]
[1641504623720,2.45627893,3427.0,3426.9,27.52014951]
[1641504623921,0.61773749,3427.2,3426.9,32.18902351]
[1641504624120,0.32243749,3427.2,3426.9,32.18902351]
[1641504624320,0.32243749,3427.2,3427.1,12.56]
[1641504624522,2.45627893,3427.8,3427.1,21.2695]
[1641504624721,2.45627893,3427.8,3427.7,4.0]
[1641504624922,2.45627893,3427.8,3427.1,30.68609211]
[1641504625123,4.46106893,3428.2,3427.7,4.667784]
[1641504625322,0.397182,3428.1,3427.2,12.668193]
[1641504625521,1.5,3427.7,3427.2,4.668193]
[1641504625724,2.00479,3427.3,3426.7,9.45768345]
[1641504625925,2.87819,3427.3,3426.7,8.0]
[1641504626324,0.397182,3427.2,3426.7,8.0]
[1641504627126,1.897182,3427.2,3426.7,8.0]
[1641504627326,2.281654,3427.2,3426.7,8.0]
[1641504627527,0.781654,3427.2,3426.7,8.0]
[1641504627726,1.22958706,3427.1,3426.8,2.00479]
[1641504627926,0.857164,3427.0,3426.8,2.00479]
[1641504628826,4.37819,3427.3,3426.8,2.00479]
[1641504628827,5.96926124,3427.3,3426.8,2.00479]
[1641504629028,2.45627893,3427.1,3426.8,2.00479]
[1641504629429,0.459982,3427.0,3426.8,2.00479]
[1641504630031,1.85276878,3426.9,3426.8,2.00479]
[1641504633033,1.85276878,3427.1,3426.8,2.00479]
[1641504633232,0.459982,3427.0,3426.8,2.00479]
[1641504633635,1.85276878,3427.1,3426.8,2.00479]
[1641504634132,0.397182,3427.0,3426.8,2.00479]
[1641504634338,1.155282,3427.0,3426.8,2.00479]
[1641504634633,1.155282,3427.0,3426.7,9.44588248]
[1641504634833,3.00805078,3427.0,3426.7,9.44588248]
[1641504635835,1.48217117,3426.8,3426.7,9.44588248]
[1641504636134,2.33933517,3426.8,3426.7,13.45546248]
[1641504636333,1.87935317,3426.8,3426.7,13.45546248]
[1641504636932,0.397182,3426.8,3426.7,13.45546248]
[1641504637132,1.85276878,3427.0,3426.7,13.45546248]
[1641504637934,1.48211998,3426.9,3426.7,13.45546248]
[1641504638934,1.86659198,3426.9,3426.7,13.45546248]
[1641504639333,0.384472,3426.9,3426.7,14.191401]
[1641504639533,1.48211998,3427.0,3426.7,14.191401]
[1641504639733,0.459982,3426.9,3426.7,14.191401]
[1641504639935,1.48211998,3427.0,3426.7,14.191401]
[1641504640334,0.37250992,3426.8,3426.7,13.45546248]
[1641504641341,1.48211998,3426.9,3426.7,13.45546248]
[1641504641739,0.397182,3427.1,3426.7,13.45546248]
[1641504641940,3.4632473,3428.0,3426.9,20.56]
[1641504642138,1.36379,3428.0,3427.2,12.0]
[1641504642337,0.384472,3427.9,3427.2,12.0]
[1641504642539,0.781654,3427.9,3427.2,4.0]
[1641504643141,0.781654,3427.9,3427.2,5.0897862]
[1641504644142,0.781654,3427.9,3427.3,2.00479]
[1641504644441,2.281654,3427.9,3427.3,2.00479]
[1641504645242,1.5,3427.7,3427.3,2.00479]
[1641504645442,0.397182,3427.6,3427.3,2.00479]
[1641504645846,0.459982,3427.5,3427.3,2.00479]
[1641504646249,1.897182,3427.4,3427.3,2.00479]
[1641504646744,1.897182,3427.4,3427.2,1.0897862]
[1641504648145,0.397182,3427.4,3427.2,1.0897862]
[1641504648346,1.5,3427.3,3427.2,1.0897862]
[1641504648546,0.397182,3427.4,3427.2,1.0897862]
[1641504648747,1.5,3427.3,3427.2,1.0897862]
[1641504648950,2.3211,3427.3,3427.2,1.0897862]
[1641504649148,0.8211,3427.3,3427.2,1.0897862]
[1641504649349,1.678264,3427.3,3426.7,2.00479]
[1641504649950,1.218282,3427.3,3426.7,2.00479]
[1641504650752,0.397182,3427.3,3426.7,3.37023962]
[1641504651754,0.781654,3427.3,3426.7,3.37023962]
[1641504652155,0.781654,3427.3,3427.2,2.00479]
[1641504652857,0.397182,3427.3,3427.2,2.83337215]
[1641504653555,1.36379,3428.0,3427.2,2.83337215]
[1641504653756,0.397182,3427.9,3427.2,2.83337215]
[1641504653956,0.384472,3427.8,3427.2,2.83337215]
[1641504655158,0.781654,3427.8,3427.2,2.83337215]
[1641504655558,2.91664319,3428.3,3427.7,4.0]
[1641504655758,2.91664319,3428.3,3427.7,4.6993]
[1641504655959,2.00479,3428.4,3427.7,4.6993]
[1641504656159,2.401972,3428.4,3427.7,6.70409]
[1641504656662,2.401972,3428.4,3427.7,7.59580487]
[1641504658062,2.00479,3428.4,3427.7,7.59580487]
[1641504658262,0.36209227,3428.3,3427.7,7.59580487]
[1641504658464,2.45627893,3428.0,3427.7,7.59580487]
[1641504659065,2.45627893,3428.0,3427.7,28.15580487]
[1641504659766,2.45627893,3428.0,3427.7,15.59580487]
[1641504660165,2.45627893,3428.0,3427.9,2.00479]
[1641504660866,2.91626093,3428.0,3427.9,2.00479]
[1641504661067,3.31344293,3428.0,3427.9,2.00479]
[1641504661468,0.857164,3428.0,3427.7,2.89650487]
[1641504661668,0.857164,3428.0,3427.9,0.87516269]
[1641504661669,1.689364,3428.0,3427.9,0.87516269]
[1641504661869,1.689364,3428.0,3427.7,0.89171487]
[1641504662868,0.857164,3428.0,3427.7,0.89171487]
[1641504663168,1.21925627,3428.0,3427.7,0.89171487]
[1641504663770,1.60372827,3428.0,3427.7,0.89171487]
[1641504664170,1.21925627,3428.0,3427.7,0.89171487]
[1641504664970,0.36209227,3427.9,3427.7,0.89171487]
[1641504665171,0.459982,3427.8,3427.7,0.89171487]
[1641504665370,0.36209227,3427.9,3427.7,0.89171487]
[1641504665570,0.36209227,3427.9,3427.7,5.75051487]
[1641504665970,0.397182,3428.0,3427.7,5.75051487]
[1641504666973,0.82207427,3427.9,3427.7,5.75051487]
[1641504667271,0.36209227,3427.9,3427.7,5.75051487]
[1641504668073,2.46982587,3428.1,3427.7,5.75051487]
[1641504668074,0.36209227,3427.8,3427.7,5.75051487]
[1641504669374,9.227e-05,3427.8,3427.7,26.31051487]
[1641504669577,2.46982587,3428.1,3428.0,8.0]
[1641504669775,2.46982587,3428.1,3428.0,20.56]
[1641504669974,2.46982587,3428.1,3428.0,25.227376]
[1641504670177,2.46982587,3428.5,3428.0,27.232166]
[1641504670475,2.46982587,3428.5,3428.4,4.0]
[1641504670675,2.46982587,3428.5,3428.4,4.7491]
[1641504670879,2.46982587,3428.5,3428.4,6.02713614]
[1641504671474,4.79586124,3428.8,3428.4,28.08713614]
[1641504671675,2.0297846,3429.1,3428.8,20.56]
[1641504671877,0.9021846,3429.1,3429.0,24.56]
[1641504672277,3.70397521,3429.2,3429.0,33.235595]
[1641504672476,3.70397521,3429.2,3429.1,27.51656664]
[1641504672676,3.70397521,3429.2,3429.1,28.27976664]
[1641504672877,3.70397521,3429.2,3429.1,32.94564564]
[1641504673080,3.70397521,3429.2,3429.1,31.44564564]
[1641504673280,3.70397521,3429.2,3429.1,32.94564564]
[1641504673479,3.08664601,3429.2,3429.1,32.94564564]
[1641504673678,3.7062442,3429.9,3429.1,31.44564564]
[1641504673879,3.7062442,3429.9,3429.8,4.0]
[1641504674078,2.00479,3430.4,3429.8,5.66997973]
[1641504675382,2.786444,3430.4,3429.8,1.66997973]
[1641504675585,4.286444,3430.4,3429.8,1.13257973]
[1641504675782,1.5,3430.1,3429.8,1.13257973]
[1641504675983,0.857164,3430.0,3429.8,1.13257973]
[1641504676184,1.458664,3430.0,3429.8,1.13257973]
[1641504677083,0.6015,3430.0,3429.8,1.13257973]
[1641504677284,2.389262,3430.4,3429.8,5.13257973]
[1641504677582,2.786444,3430.4,3429.8,1.13257973]
[1641504677784,3.08585609,3430.3,3429.8,1.13257973]
[1641504677982,3.08585609,3430.3,3429.8,0.50234884]
[1641504678785,3.08585609,3430.3,3429.9,8.0]
[1641504679082,2.00479,3430.4,3430.0,4.0]
[1641504679083,5.09064609,3430.4,3430.0,4.0]
[1641504679681,5.09064609,3430.4,3430.1,8.0]
[1641504680384,2.00479,3430.4,3430.1,8.0]
[1641504681684,0.459982,3430.3,3430.1,8.0]
[1641504681883,0.459982,3430.3,3430.0,4.0]
[1641504682285,2.00479,3430.4,3430.0,4.0]
[1641504686989,2.00479,3430.4,3429.9,0.8068]
[1641504687289,2.00479,3430.4,3430.0,8.0]
[1641504687492,2.00479,3430.4,3430.3,0.87453847]
[1641504687689,2.464772,3430.4,3430.3,0.87453847]
[1641504688292,2.464772,3430.4,3430.3,2.30466397]
[1641504688891,2.464772,3430.4,3430.3,2.82764524]
[1641504689694,2.464772,3430.4,3430.3,1.4301255]
[1641504693797,2.464772,3430.4,3430.3,0.70717591]
[1641504696201,2.00479,3430.4,3430.3,0.70717591]
[1641504696603,2.464772,3430.4,3430.3,0.70717591]
[1641504698805,2.00479,3430.4,3430.3,0.70717591]
[1641504699005,2.464772,3430.4,3430.3,0.70717591]
[1641504699409,2.464772,3430.4,3430.3,1.58173085]
[1641504699807,2.00479,3430.4,3430.3,1.58173085]
[1641504700706,2.464772,3430.4,3430.3,1.58173085]
[1641504700906,1.13028527,3430.4,3430.3,0.70717591]
[1641504701108,1.35956276,3430.4,3430.3,0.70717591]
[1641504701506,1.98126276,3430.4,3430.3,0.70717591]
[1641504701706,2.44124476,3430.4,3430.3,0.70717591]
[1641504704309,4.87360399,3430.4,3430.3,0.70717591]
[1641504704709,3.74331872,3430.4,3430.3,0.70717591]
[1641504705309,1.31095949,3430.4,3430.3,0.70717591]
[1641504705510,0.68925949,3430.4,3430.3,0.70717591]
[1641504705909,0.22927749,3430.4,3430.3,0.70717591]
[1641504706608,2.79245949,3430.4,3430.3,0.70717591]
[1641504706810,2.79245949,3430.4,3429.7,3.49063112]
[1641504706811,3.25244149,3430.4,3429.7,3.05443112]
[1641504707009,1.5,3429.9,3429.7,2.00479]
[1641504707211,0.397182,3429.8,3429.7,2.00479]
[1641504707709,0.857164,3429.8,3429.7,2.00479]
[1641504708311,1.241636,3429.8,3429.7,2.00479]
[1641504708710,1.47091349,3429.8,3429.7,2.00479]
[1641504708913,1.47091349,3429.8,3429.6,1.08106099]
[1641504709108,1.5,3429.7,3429.0,1.25983085]
[1641504709311,2.00479,3429.3,3429.0,1.25983085]
[1641504709509,0.459982,3429.2,3428.5,29.93769]
[1641504709709,0.459982,3429.2,3428.6,1.27097564]
[1641504709909,0.397182,3429.1,3428.6,1.27097564]
[1641504710311,0.384472,3429.0,3428.6,1.27097564]
[1641504710609,0.397182,3428.9,3428.6,1.27097564]
[1641504710814,0.459982,3428.8,3428.6,1.27097564]
[1641504711210,1.23438499,3428.8,3428.7,0.46289437]
[1641504711811,2.09154899,3428.8,3428.7,0.46289437]
[1641504712010,1.63156699,3428.8,3428.7,0.46289437]
[1641504712611,2.09154899,3428.8,3428.7,0.46289437]
[1641504713611,0.857164,3428.8,3428.6,1.27097564]
[1641504713811,1.08644149,3428.8,3428.6,1.27097564]
[1641504715214,0.22927749,3428.7,3428.6,1.27097564]
[1641504715413,1.72927749,3428.7,3427.8,1.46105242]
[1641504715612,1.5,3427.9,3427.7,0.61719249]
[1641504715813,0.844454,3427.8,3427.1,2.28671344]
[1641504716016,0.397182,3427.7,3427.1,2.28671344]
[1641504716413,1.5,3427.6,3427.2,1.84714158]
[1641504716614,0.857164,3427.5,3427.2,1.84714158]
[1641504717314,2.00479,3427.3,3427.2,1.84714158]
[1641504717514,2.464772,3427.3,3427.2,1.84714158]
[1641504718314,2.464772,3427.3,3427.1,1.14002179]
[1641504718616,2.861954,3427.3,3427.1,1.14002179]
[1641504720415,2.00479,3427.3,3427.1,1.14002179]
[1641504721117,0.781654,3427.5,3427.3,0.12997533]
[1641504721318,0.781654,3427.5,3427.2,0.55507462]
[1641504722015,0.397182,3427.5,3427.2,0.55507462]
[1641504722216,2.00479,3427.9,3427.2,0.55507462]
[1641504722716,3.50479,3427.9,3427.2,0.55507462]
[1641504722917,0.397182,3427.8,3427.2,0.55507462]
[1641504723115,0.384472,3427.7,3427.2,0.55507462]
[1641504724416,2.00479,3427.9,3427.2,0.55507462]
[1641504724618,28.10856234,3428.9,3427.5,5.5]
[1641504724817,2.00479,3428.3,3427.5,6.2178]
[1641504725016,2.00479,3428.3,3427.5,4.7178]
[1641504725417,2.00479,3428.3,3427.7,2.00479]
[1641504725817,2.00479,3428.3,3427.8,0.55507462]
[1641504726019,28.65579,3428.9,3427.8,0.55507462]
[1641504726220,2.00479,3428.9,3427.8,0.55507462]
[1641504726419,1.45820169,3428.6,3427.8,0.55507462]
[1641504726620,2.00479,3428.9,3427.9,1.91303918]
[1641504727121,1.45840692,3428.1,3427.9,1.91303918]
[1641504727422,2.00479,3428.9,3428.0,0.55507462]
[1641504729424,2.00479,3428.9,3428.1,2.00479]
[1641504729825,2.00479,3428.9,3428.2,0.55507462]
[1641504730025,0.397182,3428.8,3428.2,0.55507462]
[1641504731029,0.397182,3428.8,3428.1,2.00479]
[1641504731428,1.897182,3428.8,3428.1,2.00479]
[1641504734131,2.732882,3428.8,3428.1,2.00479]
[1641504735531,1.232882,3428.8,3428.1,2.00479]
[1641504743242,1.232882,3428.8,3428.2,0.55498113]
[1641504743444,1.232882,3428.8,3428.1,2.00479]
[1641504745345,1.232882,3428.8,3428.2,0.5550527]
[1641504745546,1.232882,3428.8,3428.5,2.00479]
[1641504745747,0.7193093,3428.7,3428.5,2.00479]
[1641504745946,1.5,3428.6,3428.5,2.00479]
[1641504746145,0.397182,3428.6,3428.5,2.00479]
[1641504746546,1.897182,3428.6,3428.5,2.00479]
[1641504746950,0.397182,3428.6,3428.5,2.00479]
[1641504747147,0.97592757,3428.9,3428.5,2.00479]
[1641504747348,0.97592757,3428.9,3428.5,2.72139]
[1641504748250,0.781654,3429.0,3428.5,2.72139]
[1641504749951,0.781654,3429.0,3428.5,2.00479]
[1641504751751,0.781654,3429.0,3428.3,5.83373593]
[1641504752151,0.781654,3429.0,3428.5,2.00479]
[1641504753751,2.281654,3429.0,3428.5,2.00479]
[1641504756254,1.5,3428.6,3428.5,2.00479]
[1641504756452,1.5,3428.6,3427.8,3.14384153]
[1641504756453,2.965864,3428.6,3427.8,3.14384153]
[1641504756653,1.5,3428.4,3427.8,3.14384153]
[1641504756853,1.5,3428.4,3427.9,0.55559182]
[1641504757057,0.397182,3428.3,3427.9,0.55559182]
[1641504757556,0.397182,3428.3,3428.0,1.33520192]
[1641504757754,0.459982,3428.2,3428.0,1.33520192]
[1641504758153,0.397182,3428.1,3428.0,1.33520192]
[1641504759255,0.397182,3428.1,3428.0,1.89104449]
[1641504760662,0.397182,3428.1,3428.0,1.33520192]
[1641504761461,0.397182,3428.1,3428.0,1.89125084]
[1641504764368,3.46306439,3428.4,3428.0,1.89125084]
[1641504764567,1.45827439,3428.4,3428.0,4.02761979]
[1641504764769,0.97592757,3428.5,3428.0,4.02761979]
[1641504764967,0.97592757,3428.5,3428.1,0.55604892]
[1641504765768,0.97592757,3429.0,3428.1,0.55604892]
[1641504766267,2.00479,3428.9,3428.1,2.56083892]
[1641504766769,0.97592757,3429.0,3428.1,0.55604892]
[1641504766969,0.97592757,3429.0,3428.2,0.55604892]
[1641504767172,1.23520346,3429.0,3428.2,0.55604892]
[1641504767475,1.23520346,3429.0,3428.1,3.30545132]
[1641504767872,1.23520346,3429.0,3428.2,0.55604892]
[1641504768171,0.25927589,3429.0,3428.2,0.55604892]
[1641504768372,2.00479,3428.9,3428.2,0.55604892]
[1641504768572,2.00479,3428.9,3428.2,2.5776066]
[1641504768773,2.00479,3428.9,3428.2,0.55604892]
[1641504768977,2.389262,3428.9,3428.2,0.55604892]
[1641504769175,2.389262,3428.9,3428.2,4.87368116]
[1641504769576,2.389262,3428.9,3428.3,0.55604892]
[1641504770479,2.00479,3428.9,3428.3,0.55604892]
[1641504770682,2.43392556,3429.1,3428.6,1.90301207]
[1641504771081,3.23957602,3429.3,3429.1,0.60688853]
[1641504771279,3.23957602,3429.3,3429.1,0.8337]
[1641504771482,1.23478602,3429.3,3429.1,0.8337]
[1641504771780,1.48174322,3429.6,3429.2,0.55604892]
[1641504772080,1.23478602,3429.8,3429.2,0.55604892]
[1641504772280,1.23478602,3429.8,3429.2,2.56083892]
[1641504772681,1.23478602,3429.8,3429.3,0.55604892]
[1641504773281,0.25400334,3429.7,3429.3,0.55604892]
[1641504774584,0.25400334,3429.9,3429.3,0.55604892]
[1641504778986,1.23478602,3429.7,3429.5,0.72785519]
[1641504779585,1.23478602,3429.7,3429.6,0.55604892]
[1641504780485,1.69476802,3429.7,3429.5,0.55604892]
[1641504780686,1.23478602,3429.7,3429.6,0.55604892]
[1641504781085,15.25211471,3429.7,3429.4,0.72785519]
[1641504781287,13.1018,3429.7,3429.5,0.72785519]
[1641504781486,0.857164,3429.6,3429.5,0.72785519]
[1641504781686,0.459982,3429.6,3429.5,0.72785519]
[1641504782892,0.71398534,3429.6,3429.2,2.07491828]
[1641504783289,1.11116734,3429.6,3429.2,0.61699681]
[1641504783991,1.11116734,3429.6,3429.2,1.59816143]
[1641504784591,1.11116734,3429.6,3429.2,0.98116462]
[1641504784891,0.25400334,3429.5,3429.3,0.46281486]
[1641504785094,0.459982,3429.4,3429.3,0.46281486]
[1641504785292,0.25400334,3429.5,3429.3,0.46281486]
[1641504785694,0.25400334,3429.5,3429.2,0.98116462]
[1641504785893,0.459982,3429.4,3429.2,0.98116462]
[1641504786094,0.25400334,3429.5,3429.2,0.98116462]
[1641504786594,1.48724183,3429.4,3429.2,0.98116462]
[1641504787194,0.459982,3429.3,3429.2,0.98116462]
[1641504788595,1.23323849,3429.4,3429.2,0.98116462]
[1641504788795,0.459982,3429.3,3429.2,0.98116462]
[1641504788995,1.23323849,3429.4,3429.2,0.98116462]
[1641504789999,0.459982,3429.3,3429.2,1.44399063]
[1641504790200,1.23323849,3429.4,3429.2,1.44399063]
[1641504791300,1.48724183,3429.6,3429.2,1.44399063]
[1641504792501,1.48724183,3429.6,3429.3,0.46282601]
[1641504792702,0.25400334,3429.7,3429.3,0.46282601]
[1641504793803,1.23323849,3429.8,3429.4,3.53783965]
[1641504794402,1.23323849,3429.8,3429.6,2.00479]
[1641504794803,0.25400334,3429.9,3429.6,2.00479]